Cogmind - Beta 13 @@@ ROGUE MODE // 2024.05.25 @ 18:55:11 Player: Occam Result: Destroyed by H-55 Commando with Gauss Rifle Performance ------------- Evolutions (1) 500 Regions Visited (6) 1200 Robots Destroyed (138) 690 Value Destroyed (2592) 2592 Prototype IDs (9) 180 Alien Tech Used (0) 0 Bonus (337) 337 TOTAL SCORE: 5499 Bonus ------- High Alert Combat Kills 254 Follower Combat Kills 114 Friendly Fire -31 Cogmind --------- Core Integrity 0/400 Matter 300/300 Energy 138/160 System Corruption 5% Temperature Cool (5) Movement Treading (480) Ox4 Location -8/Mines Parts ------- > --- POWER (1) -------- Light Nuclear Core > --- PROPULSION (2) --- Light Treads Compact Wheel > --- UTILITY (4) ------ Cooling System Huge Storage Unit Seismic Detector (fused) Hardened Light Armor Plating > --- WEAPON (2) ------- Spread Laser Spread Laser (fused) > --- INVENTORY (25) --- Cooled Ion Engine Light Treads Light Treads Compact Wheel Armored Wheel High-capacity Matter Pod (200) Structural Scanner Structural Scanner Experimental Sensor Array Hardened Light Armor Plating Hacking Suite Hacking Suite Trap Extractor (4/4 Heavy EX) Bomb Drone Bay (16/16) Autogun Autogun Autogun Autogun Improved Assault Rifle Rocket Launcher Rocket Launcher Heavy Flail Peak State ------------ > --- POWER ------------ Cooled Ion Engine > --- PROPULSION ------- Light Treads Armored Wheel > --- UTILITY ---------- Cooling System Huge Storage Unit Bomb Drone Bay > --- WEAPON ----------- Spread Laser Spread Laser > --- INVENTORY -------- Ion Engine Light Treads Light Treads Light Treads Armored Wheel Huge Storage Unit High-capacity Matter Pod Structural Scanner Seismic Detector ECM Suite Hardened Light Armor Plating Hardened Light Armor Plating Hardlight Generator Hacking Suite Hacking Suite Trap Extractor Spread Laser Autogun Autogun Autogun Autogun Improved Assault Rifle Rocket Launcher Rocket Launcher Heavy Flail [Rating: 31] Favorites ----------- Power Ion Engine Engine Ion Engine Power Core Light Nuclear Core Propulsion Light Treads Treads Light Treads Leg Aluminum Leg Wheel Compact Wheel Flight Unit Improved Flight Unit Utility Huge Storage Unit Device Cooling System Storage Huge Storage Unit Protection Hardened Light Armor Plating Weapon Spread Laser Energy Gun Spread Laser Ballistic Gun Light Assault Rifle Build | -11 -10 -10 -9 -9 -9 -8 ------- Run | Yrd Mat Min Mat Min Exi Min Slots Evolved 2 | . . . 2 . . . Power . | . . . . . . . Propulsion . | . . . . . . . Utility 2 | . . . 2 . . . Weapon . | . . . . . . . Parts Attached 81 | 1 13 1 43 14 . 9 Power 11 | . 2 1 4 2 . 2 Engine 10 | . 2 1 4 2 . 1 Core 1 | . . . . . . 1 Reactor . | . . . . . . . Propulsion 24 | . 4 . 13 2 . 5 Treads 14 | . 3 . 8 1 . 2 Leg . | . . . . . . . Wheel 9 | . 1 . 4 1 . 3 Hover . | . . . . . . . Flight 1 | . . . 1 . . . Utility 31 | . 3 . 17 10 . 1 Device 28 | . 2 . 17 9 . . Storage 2 | . 1 . . 1 . . Processor . | . . . . . . . Hackware . | . . . . . . . Protection 1 | . . . . . . 1 Artifact . | . . . . . . . Weapon 15 | 1 4 . 9 . . 1 Energy Gun 12 | . 4 . 7 . . 1 Energy Cannon . | . . . . . . . Ballistic Gun 3 | 1 . . 2 . . . Ballistic Cannon . | . . . . . . . Launcher . | . . . . . . . Special Weapon . | . . . . . . . Impact Weapon . | . . . . . . . Slashing Weapon . | . . . . . . . Piercing Weapon . | . . . . . . . Special Melee Weapon . | . . . . . . . Unidentified Prototypes 6 | . . . 5 1 . . Parts Lost 7 | . . . 3 1 . 3 Power 2 | . . . . 1 . 1 Propulsion 2 | . . . 1 . . 1 Utility 2 | . . . 1 . . 1 Weapon 1 | . . . 1 . . . Highest Loss Streak 2 | . . . 2 1 . 2 To Critical Strikes 1 | . . . . 1 . . Average Slot Usage (%) 99 | . 98 100 99 99 88 99 Engine 11 | . 14 14 11 11 11 7 Treads 13 | . 19 14 11 11 11 11 Wheel 10 | . 8 14 10 11 11 10 Device 26 | . 13 14 32 32 33 25 Storage 11 | . 14 14 11 11 11 11 Energy Gun 23 | . 27 28 21 22 11 22 Naked Turns . | . . . . . . . Heaviest Build 102 | 11 92 92 102 99 93 102 Greatest Support 40 | 20 40 16 20 16 16 16 Greatest Overweight (x) 8 | . 5 5 8 8 5 8 Average Overweight (x) 5 | . 3 5 6 7 5 5 Largest Inventory Capacity 25 | 8 25 25 25 25 25 25 Average Capacity 23 | 8 18 25 25 25 25 25 Most Carried 25 | 6 22 25 25 25 25 24 Average Carried 21 | 6 12 23 24 24 25 23 Final Capacity 25 | 8 25 25 25 25 25 25 Final Carried 25 | 6 22 25 25 25 25 23 Class Distribution -------------------- 73% | Mutant 26% | Scavenger-Mutant Dominant Class ---------------- Mutant | -10/Materials Mutant | -10/Mines Mutant | -9/Materials Mutant | -9/Mines Scavenger-Mutant | -9/Exiles Scavenger-Mutant | -8/Mines Resources | -11 -10 -10 -9 -9 -9 -8 ----------- Run | Yrd Mat Min Mat Min Exi Min Matter Collected 1417 | 229 332 10 559 197 . 90 Remotely 10 | . . . . 10 . . Salvage Created 3730 | 149 631 169 1928 563 . 290 Parts 251 | 9 38 19 127 50 . 8 Haulers Intercepted 8 | . 2 . 6 . . . Recyclers Shooed 9 | . 1 . 5 3 . . Parts Field Recycled . | . . . . . . . Retrieved Matter . | . . . . . . . Parts Self-Destructed . | . . . . . . . Prevented . | . . . . . . . Kills | -11 -10 -10 -9 -9 -9 -8 ------- Run | Yrd Mat Min Mat Min Exi Min Combat Hostiles Destroyed 76 | . 11 6 37 18 . 4 Guns 72 | . 11 6 33 18 . 4 AOE 4 | . . . 4 . . . Classes Destroyed 15 | 2 6 . 5 1 . 1 Worker 7 | . . . 6 1 . . Builder 8 | . 1 1 4 2 . . Tunneler 11 | 4 . 4 2 1 . . Hauler 8 | . 2 . 6 . . . Recycler 17 | 1 3 1 6 4 . 2 Mechanic 1 | . . . 1 . . . Operator 5 | . 3 . 2 . . . Watcher 5 | . 3 . 2 . . . Swarmer 30 | . 2 6 7 15 . . Grunt 30 | . 9 . 18 1 . 2 Brawler 2 | . . . 1 1 . . Duelist 3 | . . . 2 . . 1 Sentry 9 | . . . 9 . . . Demolisher 1 | . . . . 1 . . Hunter 1 | . . . . . . 1 Best Kill Streak 7 | 4 7 5 6 6 . 3 Combat Bots Only 5 | . 3 3 5 4 . 3 Max Kills in Single Turn 6 | 1 1 1 6 2 . 1 Gunslinging 1 | . . . 1 1 . . Exploded 4 | . . . 4 . . . Melee . | . . . . . . . Uniques/NPCs Destroyed . | . . . . . . . Combat | -11 -10 -10 -9 -9 -9 -8 -------- Run | Yrd Mat Min Mat Min Exi Min Hostile Shots Fired 234 | . 32 10 114 48 . 30 Missed 67 | . 9 5 33 12 . 8 Damage Taken 2104 | . 270 39 1148 276 . 371 Core 474 | . 63 7 302 49 . 53 Absorbed by Shields 135 | . . . 20 85 . 30 Regen/Repaired (Parts) 160 | . 65 . 95 . . . Core Remaining (%) 86 | 100 . 72 . . . . Volleys Fired 247 | 19 51 16 116 31 . 14 Largest 2 | 2 2 2 2 2 . 2 Hottest 130 | 70 130 130 130 130 . 130 Shots Fired 494 | 38 102 32 231 63 . 28 Gun 494 | 38 102 32 231 63 . 28 Cannon . | . . . . . . . Launcher . | . . . . . . . Special . | . . . . . . . Kinetic 21 | 19 2 . . . . . Thermal 473 | 19 100 32 231 63 . 28 Explosive . | . . . . . . . Electromagnetic . | . . . . . . . Robot Hit Streak 19 | 4 8 8 19 11 . 13 Robot Miss Streak 11 | 3 10 5 11 7 . 6 Penetration Max . | . . . . . . . Secondary Targets 10 | . 2 1 3 3 . 1 Max Gunslinging Chain 1 | . 1 1 1 1 . 1 Shots Hit Robots 419 | 20 89 25 203 57 . 25 Core Hits 549 | 9 106 36 278 77 . 43 Critical Kills . | . . . . . . . Critical Parts Destroyed . | . . . . . . . Critical Strikes . | . . . . . . . Melee Attacks . | . . . . . . . Impact . | . . . . . . . Slashing . | . . . . . . . Piercing . | . . . . . . . Sneak Attacks . | . . . . . . . Combat Hostiles . | . . . . . . . Follow-up Attacks . | . . . . . . . Damage Inflicted 6011 | 222 1070 325 3353 685 . 356 Guns 5490 | 222 1070 325 2832 685 . 356 Cannons . | . . . . . . . Explosions 521 | . . . 521 . . . Melee . | . . . . . . . Ramming . | . . . . . . . Kinetic 85 | 71 14 . . . . . Thermal 5405 | 151 1056 325 2832 685 . 356 Explosive 521 | . . . 521 . . . Electromagnetic . | . . . . . . . Impact . | . . . . . . . Slashing . | . . . . . . . Piercing . | . . . . . . . Highest Corruption 5 | . . . 5 5 5 5 Average Corruption 5 | . . . 5 5 5 5 Corruption Purged . | . . . . . . . Corruption Blocked . | . . . . . . . Effects 123 | . . . 78 33 4 8 Message Errors 41 | . . . 26 10 2 3 Matter Fused 24 | . . . 17 7 . . Heat Flow Errors 14 | . . . 8 4 . 2 Energy Discharges 10 | . . . 6 2 2 . Parts Fused 4 | . . . . 3 . 1 Data Loss (minor) 13 | . . . 11 2 . . Data Loss (major) 7 | . . . 3 4 . . Misfires 3 | . . . 1 1 . 1 Alerts 4 | . . . 4 . . . Weapon Failures 3 | . . . 2 . . 1 Overload Shots . | . . . . . . . Overflow Damage 16 | . . . 16 . . . Projectiles . | . . . . . . . Explosions 16 | . . . 16 . . . Melee . | . . . . . . . Knockbacks . | . . . . . . . Impact . | . . . . . . . Kinetic . | . . . . . . . Secondary . | . . . . . . . Self-Inflicted Damage 15 | . . . 15 . . . Shots 1 | . . . 1 . . . Rammed . | . . . . . . . Targets Rammed . | . . . . . . . Kicked . | . . . . . . . Crushed . | . . . . . . . Highest Temperature 300 | 100 300 81 273 228 . 265 Average Temperature 60 | 41 70 37 56 109 . 63 Received Heat Transfer 822 | . 135 . 526 8 . 153 Siege Activations . | . . . . . . . Robots Corrupted . | . . . . . . . Combat Hostiles . | . . . . . . . Parts Fried . | . . . . . . . Impact Corruptions . | . . . . . . . Robots Melted . | . . . . . . . Combat Hostiles . | . . . . . . . Parts Melted 4 | . . . 3 1 . . Heat Transferred 6989 | 444 1315 400 3525 855 . 450 Parts Sabotaged . | . . . . . . . Parts Stolen . | . . . . . . . Parts Stripped . | . . . . . . . Power Chain Reactions . | . . . . . . . Alert | -11 -10 -10 -9 -9 -9 -8 ------- Run | Yrd Mat Min Mat Min Exi Min Peak Influence 812 | 25 301 165 812 331 . 125 Initial 181 | . 16 . . 181 . . Average 288 | 9 111 70 498 203 . 62 Maximum Alert Level 3 | . 1 . 3 1 . . Low Security (%) 51 | 100 79 100 12 65 . 100 Level 1 21 | . 20 . 25 34 . . Level 2 10 | . . . 23 . . . Level 3 16 | . . . 38 . . . Level 4 . | . . . . . . . Level 5 . | . . . . . . . High Security . | . . . . . . . Max Security . | . . . . . . . Squads Dispatched 9 | . 4 . 5 . . . Investigation 3 | . 1 . 2 . . . Extermination . | . . . . . . . Reinforcement 4 | . 3 . 1 . . . Assault 2 | . . . 2 . . . Garrison . | . . . . . . . Intercept . | . . . . . . . Searches Triggered . | . . . . . . . Construction Impeded . | . . . . . . . Haulers Reinforced . | . . . . . . . Active Scanning Responses . | . . . . . . . Cargo Convoy Interrupts . | . . . . . . . Stealth | -11 -10 -10 -9 -9 -9 -8 --------- Run | Yrd Mat Min Mat Min Exi Min Distress Signals 7 | . 3 . 4 . . . Communications Jammed . | . . . . . . . Distress Signals . | . . . . . . . Times Spotted 120 | . 26 8 62 18 . 6 Peak Tracking Total 5 | . 4 3 5 4 . 3 Tactical Retreats 4 | . 1 . 2 . . 1 Traps | -11 -10 -10 -9 -9 -9 -8 ------- Run | Yrd Mat Min Mat Min Exi Min Traps Triggered 1 | . 1 . . . . . Indirectly . | . . . . . . . Trap Hack Attempts . | . . . . . . . Triggered . | . . . . . . . Disarmed . | . . . . . . . Reprogrammed . | . . . . . . . Reused . | . . . . . . . Traps Extracted . | . . . . . . . Installed . | . . . . . . . Triggered . | . . . . . . . Most Traps Carried 4 | . . . . 4 4 4 Machines | -11 -10 -10 -9 -9 -9 -8 ---------- Run | Yrd Mat Min Mat Min Exi Min Machines Disabled 4 | . . . 4 . . . Max in Single Turn 3 | . . . 3 . . . Machines Repaired . | . . . . . . . Machines Dismantled . | . . . . . . . Machines Sabotaged . | . . . . . . . Overloaded Fab Kills . | . . . . . . . Hacking | -11 -10 -10 -9 -9 -9 -8 --------- Run | Yrd Mat Min Mat Min Exi Min Machines Accessed 23 | . 7 . 13 2 1 . Terminals 16 | . 6 . 9 1 . . Fabricators . | . . . . . . . Repair Stations 2 | . 1 . 1 . . . Recycling Units 1 | . . . 1 . . . Scanalyzers 2 | . . . 2 . . . Garrison Access . | . . . . . . . Total Hacks 73 | . 27 . 43 2 1 . Successful 42 | . 14 . 26 1 1 . Failed 29 | . 12 . 16 1 . . Catastrophic 3 | . 1 . 2 . . . Database Lockouts 2 | . 1 . 1 . . . Manual 38 | . 9 . 28 1 . . Terminals 51 | . 22 . 28 1 . . Fabricators . | . . . . . . . Repair Stations 10 | . 5 . 5 . . . Recycling Units 2 | . . . 2 . . . Scanalyzers 8 | . . . 8 . . . Garrison Access . | . . . . . . . Terminal Hacks 18 | . 7 . 9 1 1 . Record 1 | . . . . . 1 . Part Schematic 1 | . 1 . . . . . Robot Analysis 5 | . 1 . 4 . . . Prototype ID Bank 2 | . 1 . 1 . . . Open Door 1 | . . . . 1 . . Terminal Index 2 | . 1 . 1 . . . Alert Level 1 | . 1 . . . . . Unreport Threat 2 | . . . 2 . . . Locate Traps 2 | . 1 . 1 . . . Hauler Manifests 1 | . 1 . . . . . Fabricator Hacks . | . . . . . . . Repair Station Hacks 8 | . 4 . 4 . . . Scan Component 4 | . 2 . 2 . . . Repair 4 | . 2 . 2 . . . Recycling Unit Hacks . | . . . . . . . Scanalyzer 8 | . . . 8 . . . Insert Component 4 | . . . 4 . . . Analyze 4 | . . . 4 . . . Garrison Access Hacks . | . . . . . . . Unauthorized Hacks 8 | . 3 . 5 . . . Terminals 6 | . 3 . 3 . . . Assimilate 1 | . . . 1 . . . Botnet 4 | . 2 . 2 . . . Operators 1 | . 1 . . . . . Fabricators . | . . . . . . . Repair Stations . | . . . . . . . Recycling Units 2 | . . . 2 . . . Reject 1 | . . . 1 . . . Recyclers 1 | . . . 1 . . . Scanalyzers . | . . . . . . . Garrison Access . | . . . . . . . Data Cores Recovered 1 | . . . 1 . . . Used . | . . . . . . . Hacking Detections 18 | . 7 . 10 1 . . Full Trace Events 5 | . 1 . 4 . . . Feedback Events . | . . . . . . . Feedback Blocked . | . . . . . . . Robot Schematics Acquired . | . . . . . . . Robots Built . | . . . . . . . Authchips . | . . . . . . . Time . | . . . . . . . Total Robot Build Rating . | . . . . . . . Part Schematics Acquired 4 | . 1 . 3 . . . Parts Built . | . . . . . . . Authchips . | . . . . . . . Time . | . . . . . . . Total Part Build Rating . | . . . . . . . Parts Repaired 4 | . 2 . 2 . . . Time 128 | . 64 . 64 . . . Parts Recycled . | . . . . . . . Recycled Matter . | . . . . . . . Retrieved Matter . | . . . . . . . Retrieved Components . | . . . . . . . Parts Scanalyzed 4 | . . . 4 . . . Part Schematics Acquired 3 | . . . 3 . . . Parts Damaged . | . . . . . . . Bothacking | -11 -10 -10 -9 -9 -9 -8 ------------ Run | Yrd Mat Min Mat Min Exi Min Used RIF Installer . | . . . . . . . Robots Hacked . | . . . . . . . Non-combat . | . . . . . . . Combat . | . . . . . . . Robot Hacks Applied . | . . . . . . . Relay Couplers Released . | . . . . . . . Fabnet Peak Effective % . | . . . . . . . Robots Rewired . | . . . . . . . Allies Hacked . | . . . . . . . Hacks Repelled . | . . . . . . . Allies | -11 -10 -10 -9 -9 -9 -8 -------- Run | Yrd Mat Min Mat Min Exi Min Total Allies 3 | . . 3 . . . . Largest Group 3 | . . 3 3 . . . Highest-Rated Group 40 | . . 40 40 . . . Highest-Rated Ally 16 | . . 16 16 . . . Total Orders . | . . . . . . . Ally Attacks 43 | . . 6 37 . . . Total Damage 347 | . . 81 266 . . . Kills 10 | . . 2 8 . . . Allies Corrupted . | . . . . . . . Allies Melted . | . . . . . . . Intel | -11 -10 -10 -9 -9 -9 -8 ------- Run | Yrd Mat Min Mat Min Exi Min Robot Analysis Total 5 | . 1 . 4 . . . Derelict Logs Recovered 3 | . . 1 . 2 . . Drone Launches . | . . . . . . . Drone Recoveries . | . . . . . . . Exploration | -11 -10 -10 -9 -9 -9 -8 ------------- Run | Yrd Mat Min Mat Min Exi Min Turns Passed 7807 | 122 1619 800 3307 1355 234 370 Spaces Moved 3478 | 57 784 426 1318 598 134 161 Core . | . . . . . . . Treads 310 | . 281 . 29 . . . Legs 77 | 57 20 . . . . . Wheels 3091 | . 483 426 1289 598 134 161 Hover . | . . . . . . . Flight . | . . . . . . . Fastest Speed 120 | 120 120 175 175 175 175 175 Average Speed 188 | 120 168 175 204 201 175 185 Slowest Speed 480 | 120 175 175 480 210 175 210 Overloaded Moves . | . . . . . . . Propulsion Burnouts . | . . . . . . . Robots Hopped . | . . . . . . . Cave-ins Triggered . | . . . . . . . Exploration Rate (%) 66 | 4 83 98 96 98 48 36 Regions Visited 6 Branch Regions 4 Pre-discovered Areas 1 | . . . . . 1 . Known Exits Taken . | . . . . . . . Unknown Exits Taken 6 | 1 1 1 1 1 1 . Scrap Searched 4 | . . 1 . 2 . 1 Spaces Dug . | . . . . . . . Terrain Destroyed 42 | . . . 42 . . . Melee . | . . . . . . . Projectile . | . . . . . . . AOE 42 | . . . 42 . . . Terrain Rammed . | . . . . . . . Walls Destroyed . | . . . . . . . Machines Disabled . | . . . . . . . Actions | -11 -10 -10 -9 -9 -9 -8 --------- Run | Yrd Mat Min Mat Min Exi Min Total 4261 | 76 985 450 1722 689 134 205 Wait 333 | . 105 2 175 33 . 18 Move 3472 | 56 783 425 1317 597 133 161 Hop . | . . . . . . . Pick Up 50 | . 20 4 23 3 . . Fast Attach 27 | . 7 . 13 5 . 2 Attach 19 | . 2 . 10 2 . 5 Detach 12 | . 3 . 4 2 . 3 Swap 36 | 1 4 1 21 7 . 2 Drop 65 | . 10 2 43 9 1 . Fire 247 | 19 51 16 116 31 . 14 Melee . | . . . . . . . Ram . | . . . . . . . Kick . | . . . . . . . Crush . | . . . . . . . Escape Stasis . | . . . . . . . Rewire . | . . . . . . . Trap . | . . . . . . . Miscellaneous . | . . . . . . . Route ------- -11/Scrapyard -10/Materials (discovered 4 exits: *Mat x2 / [*Min x2]) -10/Mines (discovered 2 exits: *Mat x2) -9/Materials (discovered 6 exits: [*Mat x3] / *Min x2 / *Sto) -9/Mines (discovered 3 exits: [*Mat x2] / *Exi) -9/Exiles -8/Mines History --------- Turn | Location | Event 20 | -11/Scrapyard | Discovered new exit (range 2) 123 | -11/Scrapyard | Entered Materials 258 | -10/Materials | Discovered new exit (range 14) 307 | -10/Materials | Build established: Mutant 585 | -10/Materials | Discovered new exit (range 12) 776 | -10/Materials | Central database locked down 996 | -10/Materials | Discovered new exit (range 12) 1292 | -10/Materials | Repaired Spread Laser 1326 | -10/Materials | Repaired Spread Laser 1380 | -10/Materials | Discovered new exit (range 8) 1742 | -10/Materials | Entered Mines 1756 | -10/Mines | Discovered new exit (range 5) 2113 | -10/Mines | Received a Rocket Launcher from a helpful Derelict 2181 | -10/Mines | Learned 2 Materials zone layouts 2303 | -10/Mines | Assisted by bots powering up and referring to "LRC-V3" 2528 | -10/Mines | Discovered new exit (range 6) 2542 | -10/Mines | Entered Materials 2542 | -9/Materials | Accompanied by 3 allies 2542 | -9/Materials | Evolved 2 slots: Utility x2 2543 | -9/Materials | Identified exit to Storage 2843 | -9/Materials | Build established: Scavenger-Mutant 3216 | -9/Materials | Discovered new exit (range 15) 3460 | -9/Materials | Discovered new exit (range 9) 4020 | -9/Materials | Discovered new exit (range 10) 4160 | -9/Materials | Discovered new exit (range 14) 4339 | -9/Materials | Discovered new exit (range 16) 4417 | -9/Materials | Build established: Mutant 4542 | -9/Materials | First assault squad dispatched 4988 | -9/Materials | Core integrity fell below 50% 5265 | -9/Materials | Repaired Rocket Launcher 5298 | -9/Materials | Repaired Cooling System 5556 | -9/Materials | Central database locked down 5849 | -9/Materials | Entered Mines 6025 | -9/Mines | Found the Drone Emporium 6057 | -9/Mines | Found Prototype Device 6057 | -9/Mines | Identified Bomb Drone Bay 6233 | -9/Mines | Learned 8 Materials zone layouts 6240 | -9/Mines | Assembled infested the area 6269 | -9/Mines | Learned Materials stockpile data 6357 | -9/Mines | Discovered new exit (range 6) 6479 | -9/Mines | Found a hidden stash of uninstalled traps 6552 | -9/Mines | Core integrity fell below 20% 6800 | -9/Mines | Found a damaged Exp. Sensor Array with a note attached 6806 | -9/Mines | Found Prototype Device 7075 | -9/Mines | Discovered new exit (range 6) 7114 | -9/Mines | Deemed a non-threat by the Exiles lab entrance 7114 | -9/Mines | Discovered new exit (range 5) 7204 | -9/Mines | Entered Exiles 7247 | -9/Exiles | Met 8R-AWN 7277 | -9/Exiles | Met EX-HEX 7320 | -9/Exiles | Build established: Scavenger-Mutant 7347 | -9/Exiles | Met EX-DEC 7354 | -9/Exiles | Learned location of Zion (-6) 7422 | -9/Exiles | Discovered new exit (range 10) 7438 | -9/Exiles | Entered Mines 7808 | -8/Mines | Destroyed by H-55 Commando with Gauss Rifle Last Messages --------------- 07644_ R-06 Scavenger collects Sml. Storage Unit. 07651_ System corrupted: Seismic Detector fused. 07667_ C-30 ARC bursts open, deploying its payload. 07667_ H-55 Commando unfolds itself. 07667_ Penetrated by Slug. 07667_ Ion Engine destroyed. 07692_ Penetrated by Slug. 07698_ H-55 Commando destroyed. 07704_ Acquired 10 matter. 07709_ Acquired Lgt. Nuclear Core. 07714_ R-06 Scavenger destroyed. 07715_ Extracted 10 matter. 07720_ Discarded Lgt. Treads. 07744_ AS8#GL1MZTHFUA6WFM,H&DHH %JBJZ5:MMR 07750_ Acquired 20 matter. 07751_ K-01 Serf collects debris. 07791_ K-01 Serf cleans the Pressure Siphon. 07805_ Penetrated by Slug. 07805_ Pressure Siphon disabled. 07808_ Penetrated by Slug. Map ----- +----------------------------------------------------+ | | | ?????????????????????????????????????????????????? | | ?????????????????????????????????????????????????? | | ?????????????????????????????????????????????????? | | ?????????????????????####????????????????????????? | | ????????????????????## ########?????????????????? | | ????????????????????# ## ##??????????????? " | | ????????????????????# ##?????????????? " | | ????????????????????## ## ##????????????? | | ?????????????????????######### ##?####??????# " | | ?????????????????????????????# ### ####???# " | | ?????????????????????????????# ##??# " | | ?????????????????????????????# #??# | | ?????????????????????????????## ##### #??# | | ??????????????????????????????####???#### ##??# | | ????????????????????????????????????###?# ##???### | | ??????????????????????????????????## ### #??????? | | ???????????????????????????####??## ## #??????? | | ??????????????????????????## #### ## ######?? | | ??????????????????????????# ## %% #?? | | ??????????????????????????# %"" ####### ### | | ??????????????????????????# """ #??????# | | ??????????????????????????# """ #???????# ### | | ??????????????????????##### """ #???????# ### | | ??????????????????????# u ##??????# | | ??????????????????????# @ ### ###?####### | | ??????????????????????# #### ##?## ## ##??# | | ??????????????????????#h ???####???## #??# | | ??????????????????????#u????????????## #??# | | ??????????????????????# ?????????????## #??# | | ??????????????????????#???????????????# ##??# | | ??????????????????????????????????????# ##???# | | ??????????????????????????????????????# ##????# | | ?????????????????????????????????###### ##?????#= | | ?????????????????????????????????# #??????#! | | ?????????????????????????????????# #### #??????#= | | ??????????????????????????????????????# #???##### | | ??????????????????????????????????????# #??## # | | ??????????????????????????????????????# #### | | ??????????????????????????????????????# "%" | | ??????????????????????????????????????# " % | | ??????????????????????????????????????########## | | ???????????????????????????????????????????????### | | ?????????????????????????????????????????????????# | | ?????????????????????????????????????????????????# | | ?????????????????????????????????????????????????# | | ?????????????????????????????????????????????????? | | ?????????????????????????????????????????????????? | | ?????????????????????????????????????????????????? | | ?????????????????????????????????????????????????? | +----------------------------------------------------+ Best States ------------- Heat Dissipation 50 Energy Generation 14 Energy Capacity 280 Matter Stores 300 Matter Capacity 300 Sight Range 16 Terrain Scan Density 10 Armor Coverage 150 Evasion (%) 55 Recoil Reduction 2 Trap Extractor Capacity 4 Item Schematics ----------------- Huge Storage Unit | -10/Materials | Hacked Lgt. Armor Plating | -9/Materials | Scanalyzed ECM Suite | -9/Materials | Scanalyzed Cld. Ion Engine | -9/Materials | Scanalyzed Robot Schematics ------------------ None Fabricated ------------ Nothing Alien Tech Used ----------------- None Achievements -------------- None Challenges ------------ None Game ------ Seed MetaStructuralCharge Manual? 0 Play Time 00:52:01 Cumulative 332.9 hours Start 2024.05.25 @ 12:04:31 End 2024.05.25 @ 18:55:11 Sessions 3 Manual Loads 0 Difficulty Rogue Special Mode None Game No. 204 Rogue 60 Adventurer 144 Explorer 0 Win Type - Total 4 Types 2/0/1/1/0/0/0/0/0 Lore% 66 Gallery% 78 Achievement% 64 Wizard Run 0 Options --------- Layout 0 ASCII 0 Keyboard 0 Movement Mouse Keybinds 0 Fullscreen 2 Font 20/SmallcapsGlow Map View 66x50 Zoom Use 0% Tactical HUD 1 Map Filters NONE Filters NONE Steam X RUN: 6fce914e-0bad-42ea-9f3a-a9b5e355a44d